fUST/lending_fUST_20240203
["ID","MTS","AMOUNT","RATE_DAILY","PERIOD"]
[313208746,1706950241913,-533.9,0.00028219,2]
[313208747,1706950241922,-1386.61,0.00028219,2]
[313208748,1706950241931,-500.0,0.00028219,2]
[313208749,1706950241941,-500.0,0.00028219,2]
[313208750,1706950241950,-500.0,0.00028219,2]
[313208751,1706950241959,-500.0,0.00028219,2]
[313208752,1706950241969,-1825.53,0.00028219,2]
[313208753,1706950241978,-500.0,0.00028219,2]
[313208754,1706950241987,-500.0,0.00028219,2]
[313208755,1706950241996,-4054.53,0.00028219,2]
[313208756,1706950242006,-753.05,0.00028219,2]
[313208757,1706950242015,-5000.0,0.00028263,5]
[313208758,1706950242024,-500.0,0.00028493,2]
[313208759,1706950242034,-500.0,0.00028493,2]
[313208760,1706950242043,-463.55643008,0.00028493,2]
[313208761,1706950242058,-50.80954329,0.00028493,2]
[313208762,1706950242067,-500.0,0.00028493,2]
[313208763,1706950242077,-237.34810306,0.00028493,2]
[313208764,1706950242088,-401.17189694,0.00028493,2]
[313208765,1706950242097,-1170.74854119,0.00028493,2]
[313208766,1706950242108,-2142.55145881,0.00028493,2]
[313208767,1706950242117,-500.0,0.00028493,2]
[313208768,1706950242126,-500.0,0.00028493,2]
[313208769,1706950242135,-695.48,0.00028493,2]
[313208770,1706950242144,-500.0,0.00028493,2]
[313208771,1706950242153,-615.67,0.00028493,2]
[313208772,1706950242162,-1286.48,0.00028493,2]
[313208773,1706950242171,-1386.61,0.00028493,2]
[313208774,1706950242180,-151.70352653,0.00028493,2]
[313208777,1706950242211,-348.29647347,0.00028493,2]
[313208778,1706950242221,-1825.53,0.00028493,2]
[313208780,1706950242231,-59.36873188,0.00028493,2]
[313208825,1706950243534,-440.63126812,0.00028493,2]
[313208827,1706950243543,-3135.22624096,0.00028493,2]
[313208829,1706950243555,-919.30375904,0.00028493,2]
[313208830,1706950243563,-753.05,0.00028493,2]
[313208831,1706950243573,-306.0,0.00028493,2]
[313208832,1706950243581,-153.0,0.00028493,2]
[313208833,1706950243591,-371.2448491,0.00028493,2]
[313208834,1706950243601,-199.7424242,0.00028493,2]
[313208835,1706950243610,-153.0,0.00028493,2]
[313208836,1706950243619,-153.0,0.00028493,2]
[313208837,1706950243631,-153.0,0.00028493,2]
[313208838,1706950243640,-199.7424242,0.00028493,2]
[313208839,1706950243650,-153.0,0.00028493,2]
[313208840,1706950243659,-153.0,0.00028493,2]
[313208841,1706950243669,-199.6126922,0.00028493,2]
[313208842,1706950243678,-153.0,0.00028493,2]
[313208843,1706950243687,-153.0,0.00028493,2]
[313208844,1706950243696,-417.81584235,0.000287,2]
[313208866,1706950429902,4304.77078368,0.0001631,2]
[313208869,1706950443895,7441.40348208,0.0001789,2]
[313208872,1706950496227,1012.61183762,0.0001789,2]
[313208873,1706950512222,1012.61183762,0.0001789,2]
[313208874,1706950534235,1012.61183762,0.0001789,2]
[313208876,1706950554231,1012.61183762,0.0001789,2]
[313208877,1706950572855,1012.61183762,0.0001789,2]
[313208878,1706950588230,1012.61183762,0.0001789,2]
[313208879,1706950606234,1012.61183762,0.0001789,2]
[313208880,1706950626234,1012.61183762,0.0001789,2]
[313208882,1706950648240,1038.10529904,0.0001789,2]
[313208883,1706950728951,151.01963255,0.00028872,120]
[313208893,1706951288582,151.01963255,0.000288,120]
[313208943,1706951432618,-426.88835692,0.00023672,2]
[313208944,1706951432630,-2975.41110677,0.00023672,2]
[313208945,1706951432646,-2244.43916932,0.00023672,2]
[313208946,1706951432656,-3977.44618093,0.00023672,2]
[313208947,1706951432672,-717.4770118,0.00023673,2]
[313208948,1706951432682,-155.02170304,0.00023673,2]
[313208949,1706951432694,-261.44545731,0.00023674,7]
[313208950,1706951432705,-166.666666,0.00023687,2]
[313208951,1706951432716,-1393.9739267,0.00023997,2]
[313208952,1706951432727,-192.830686,0.00024097,2]
[313208953,1706951432738,-2211.87638096,0.00024818,2]
[313208954,1706951432749,-1992.78199772,0.00024841,2]
[313208955,1706951432759,-191.21989754,0.00024841,2]
[313208956,1706951432773,-19808.78010246,0.00024841,2]
[313208957,1706951432783,-207.80118808,0.00024852,2]
[313208959,1706951432792,-869.18055187,0.00025297,2]
[313208961,1706951432802,-600.0,0.00026,2]
[313208963,1706951432811,-200.0,0.00026116,15]
[313208965,1706951432821,-1408.91381281,0.00026119,2]
[313208967,1706951432831,-155.02170304,0.00026401,2]
[313208969,1706951432841,-169.58374,0.00026411,2]
[313208971,1706951432851,-600.0,0.000265,2]
[313208973,1706951432862,-1393.97392668,0.00026755,3]
[313208975,1706951432873,-166.666666,0.00026916,2]
[313208977,1706951432884,-600.0,0.00027,2]
[313208980,1706951432896,-492.8939951,0.00027097,2]
[313208982,1706951432906,-4074.33,0.00027387,3]
[313208984,1706951432916,-386.65582459,0.00027395,2]
[313208986,1706951432927,-1274.62613719,0.00027395,2]
[313208988,1706951432939,-2002.74537642,0.00027395,2]
[313208990,1706951432950,-1360.54955836,0.00027395,2]
[313208993,1706951432961,-1592.05288796,0.00027396,2]
[313208995,1706951432971,-300.0,0.00027397,2]
[313208997,1706951432981,-1829.31848174,0.00027397,2]
[313208999,1706951432991,-2088.24989888,0.00027397,2]
[313209001,1706951433001,-505.91505518,0.00027397,2]
[313209003,1706951433011,-500.0,0.00027397,2]
[313209005,1706951433021,-500.0,0.00027397,2]
[313209007,1706951433031,-500.0,0.00027397,2]
[313209009,1706951433042,-500.0,0.00027397,2]
[313209011,1706951433052,-503.63711727,0.00027397,2]
[313209014,1706951433063,-500.0,0.00027397,2]
[313209016,1706951433073,-516.25072468,0.00027397,2]
[313209017,1706951433083,-503.75418424,0.00027397,2]
[313209018,1706951433093,-400.0,0.00027397,2]
[313209019,1706951433104,-455.2446632,0.00027397,2]
[313209020,1706951433114,-500.0,0.00027397,2]
[313209021,1706951433124,-500.0,0.00027397,2]
[313209022,1706951433134,-506.03076517,0.00027397,2]
[313209023,1706951433145,-500.0,0.00027397,2]
[313209024,1706951433155,-500.0,0.00027397,2]
[313209025,1706951433166,-505.54337339,0.00027397,2]
[313209026,1706951433177,-500.0,0.00027397,2]
[313209027,1706951433187,-500.0,0.00027397,2]
[313209028,1706951433196,-500.0,0.00027397,2]
[313209029,1706951433207,-2425.14762021,0.00027397,2]
[313209030,1706951433221,-538.51743645,0.00027397,2]
[313209031,1706951433234,-463.12373391,0.00027397,2]
[313209076,1706951438804,-14986.1380985,0.0002329,2]
[313209078,1706951438814,-1943.62842086,0.00024875,2]
[313209080,1706951438823,-458.80120943,0.00027397,2]
[313209082,1706951438832,-504.48564056,0.00027397,2]
[313209084,1706951438841,-500.0,0.00027397,2]
[313209086,1706951438851,-500.0,0.00027397,2]
[313209088,1706951438860,-500.0,0.00027397,2]
[313209090,1706951438869,-500.0,0.00027397,2]
[313209092,1706951438878,-500.0,0.00027397,2]
[313209094,1706951438887,-500.0,0.00027397,2]
[313209096,1706951438896,-506.70682152,0.00027397,2]
[313209098,1706951438905,-529.75092706,0.00027397,2]
[313209100,1706951438914,-500.0,0.00027397,2]
[313209102,1706951438923,-500.0,0.00027397,2]
[313209104,1706951438931,-416.71414332,0.00027397,2]
[313209106,1706951438941,-500.0,0.00027397,2]
[313209108,1706951438950,-500.0,0.00027397,2]
[313209110,1706951438960,-502.51300399,0.00027397,2]
[313209112,1706951438969,-500.0,0.00027397,2]
[313209115,1706951438979,-500.0,0.00027397,2]
[313209116,1706951438988,-500.0,0.00027397,2]
[313209119,1706951438997,-491.06629373,0.00027397,2]
[313209120,1706951439006,-500.0,0.00027397,2]
[313209123,1706951439016,-500.0,0.00027397,2]
[313209125,1706951439025,-500.0,0.00027397,2]
[313209127,1706951439034,-502.0299749,0.00027397,2]
[313209129,1706951439042,-500.0,0.00027397,2]
[313209131,1706951439052,-503.8622474,0.00027397,2]
[313209132,1706951439061,-569.56675569,0.00027397,2]
[313209133,1706951439070,-1000.0,0.00027397,2]
[313209134,1706951439079,-374.82154736,0.00027397,2]
[313209135,1706951439088,-645.36468903,0.00027397,2]
[313209136,1706951439097,-500.0,0.00027397,2]
[313209137,1706951439106,-500.0,0.00027397,2]
[313209138,1706951439114,-502.64182765,0.00027397,2]
[313209139,1706951439123,-500.0,0.00027397,2]
[313209140,1706951439132,-258.58735297,0.00027397,2]
[313209141,1706951439141,-500.0,0.00027397,2]
[313209142,1706951439150,-500.0,0.00027397,2]
[313209143,1706951439159,-504.25981323,0.00027397,2]
[313209144,1706951439168,-504.4914612,0.00027397,2]
[313209145,1706951439177,-302.26519309,0.00027397,2]
[313209146,1706951439186,-500.0,0.00027397,2]
[313209147,1706951439195,-500.0,0.00027397,2]
[313209148,1706951439204,-607.72264108,0.00027397,2]
[313209149,1706951439213,-472.85051951,0.00027397,2]
[313209150,1706951439222,-500.0,0.00027397,2]
[313209151,1706951439231,-3145.6,0.00027397,2]
[313209152,1706951439240,-763.34,0.00027397,2]
[313209153,1706951439249,-500.0,0.00027397,2]
[313209154,1706951439258,-500.0,0.00027397,2]
[313209155,1706951439267,-500.0,0.00027397,2]
[313209156,1706951439276,-503.421499,0.00027397,2]
[313209157,1706951439285,-500.0,0.00027397,2]
[313209158,1706951439294,-502.82897254,0.00027397,2]
[313209159,1706951439303,-503.67279272,0.00027397,2]
[313209160,1706951439312,-500.0,0.00027397,2]
[313209161,1706951439322,-503.35417262,0.00027397,2]
[313209162,1706951439332,-500.0,0.00027397,2]
[313209163,1706951439341,-500.0,0.00027397,2]
[313209164,1706951439350,-710.8,0.00027397,2]
[313209165,1706951439360,-500.0,0.00027397,2]
[313209166,1706951439368,-500.0,0.00027397,2]
[313209167,1706951439378,-500.0,0.00027397,2]
[313209168,1706951439387,-578.67227873,0.00027397,2]
[313209170,1706951439396,-500.0,0.00027397,2]
[313209173,1706951439407,-500.0,0.00027397,2]
[313209174,1706951439416,-500.0,0.00027397,2]
[313209176,1706951439425,-500.0,0.00027397,2]
[313209178,1706951439435,-500.0,0.00027397,2]
[313209180,1706951439445,-500.0,0.00027397,2]
[313209182,1706951439454,-500.0,0.00027397,2]
[313209184,1706951439463,-606.04,0.00027397,2]
[313209185,1706951439474,-500.0,0.00027397,2]
[313209186,1706951439483,-500.0,0.00027397,2]
[313209188,1706951439493,-500.0,0.00027397,2]
[313209190,1706951439502,-500.0,0.00027397,2]
[313209192,1706951439511,-265.23428193,0.00027397,2]
[313209194,1706951439520,-504.08404034,0.00027397,2]
[313209196,1706951439530,-512.88335449,0.00027397,2]
[313209198,1706951439539,-500.0,0.00027397,2]
[313209199,1706951439548,-353.32596457,0.00027397,2]
[313209202,1706951439558,-500.0,0.00027397,2]
[313209204,1706951439567,-500.0,0.00027397,2]
[313209205,1706951439577,-512.4280412,0.00027397,2]
[313209207,1706951439589,-1241.78,0.00027397,2]
[313209209,1706951439598,-190.19588043,0.00027397,2]
[313209212,1706951439608,-500.0,0.00027397,2]
[313209214,1706951439617,-319.28701932,0.00027397,2]
[313209215,1706951439627,-500.0,0.00027397,2]
[313209218,1706951439636,-500.0,0.00027397,2]
[313209220,1706951439645,-500.0,0.00027397,2]
[313209222,1706951439655,-500.0,0.00027397,2]
[313209224,1706951439666,-1370.5,0.00027397,2]
[313209226,1706951439676,-500.0,0.00027397,2]
[313209228,1706951439685,-500.0,0.00027397,2]
[313209230,1706951439694,-500.0,0.00027397,2]
[313209232,1706951439703,-500.0,0.00027397,2]
[313209234,1706951439712,-500.0,0.00027397,2]
[313209236,1706951439721,-502.61709919,0.00027397,2]
[313209238,1706951439730,-500.0,0.00027397,2]
[313209240,1706951439739,-522.73279153,0.00027397,2]
[313209242,1706951439752,-518.86274928,0.00027397,2]
[313209244,1706951439763,-751.51445919,0.00027397,2]
[313209246,1706951439773,-500.0,0.00027397,2]
[313209248,1706951439782,-500.0,0.00027397,2]
[313209250,1706951439792,-500.0,0.00027397,2]
[313209252,1706951439801,-341.30885307,0.00027397,2]
[313209340,1706951627137,151.01963255,0.0002947,120]
[313209642,1706952641145,-261.44545731,0.0002377,7]
[313209644,1706952641155,-717.4770118,0.00023772,2]
[313209646,1706952641164,-168.205256,0.00023774,2]
[313209647,1706952641174,-303.51001634,0.00024894,2]
[313209737,1706952642912,-2180.51563736,0.00024894,2]
[313209738,1706952642942,-1155.02046238,0.00024894,2]
[313209739,1706952642954,-609.49764648,0.00024894,2]
[313209740,1706952642965,-803.23444556,0.00024902,2]
[313209741,1706952642974,-982.78317412,0.00024902,2]
[313209742,1706952642983,-155.02170304,0.00024902,4]
[313209743,1706952642992,-1684.68956661,0.00024938,2]
[313209744,1706952643002,-181.02956964,0.00025,3]
[313209745,1706952643012,-335.29979556,0.00025296,2]
[313209746,1706952643021,-1201.23993608,0.00025297,2]
[313209747,1706952643030,-2218.05033784,0.00025398,2]
[313210032,1706953831991,-155.02170304,0.00023063,2]
[313210034,1706953832001,-326.17134224,0.00023063,2]
[313210036,1706953832010,-1200.7118793,0.00023064,2]
[313210038,1706953832019,-500.0,0.00023065,2]
[313210040,1706953832029,-1585.69628601,0.00023066,2]
[313210042,1706953832038,-602.81607542,0.0002307,2]
[313210044,1706953832052,-3259.3348352,0.0002307,2]
[313210047,1706953832063,-992.02481886,0.0002307,2]
[313210049,1706953832075,-17827.77393262,0.0002307,2]
[313210051,1706953832084,-1146.42508571,0.00023298,2]
[313210053,1706953832093,-1361.38745114,0.00023675,2]
[313210055,1706953832102,-1314.64548409,0.00023769,2]
[313210057,1706953832111,-166.109927,0.00023818,2]
[313210059,1706953832120,-6071.89028395,0.00023899,2]
[313210061,1706953832129,-176.740816,0.00023899,2]
[313210063,1706953832138,-4035.82532571,0.00024,2]
[313210065,1706953832147,-170.124174,0.00024083,2]
[313210067,1706953832157,-8668.59935887,0.00024128,2]
[313210069,1706953832166,-155.02170304,0.00024388,4]
[313210071,1706953832175,-913.52520602,0.00024897,2]
[313210073,1706953832183,-1833.08399601,0.00024898,2]
[313210075,1706953832192,-1676.23771138,0.00024898,2]
[313210077,1706953832201,-4254.64464906,0.00024898,2]
[313210078,1706953832210,-309.98450155,0.000249,2]
[313210081,1706953832219,-335.29979556,0.00025397,2]
[313210083,1706953832228,-1651.31078755,0.00025398,2]
[313210084,1706953832238,-765.43990857,0.00025398,2]
[313210086,1706953832247,-234.9472934,0.00025398,2]
[313210088,1706953832256,-155.02046238,0.00025398,2]
[313210090,1706953832266,-200.0,0.00026068,7]
[313210092,1706953832275,-1314.64548407,0.00026559,3]
[313210094,1706953832284,-5000.0,0.00026573,5]
[313210096,1706953832293,-187.71315844,0.00026747,2]
[313210099,1706953832303,-7771.88,0.00026817,3]
[313210101,1706953832312,-4345.80334459,0.00026827,2]
[313210103,1706953832321,-9326.26,0.00026839,3]
[313210104,1706953832331,-3314.88451487,0.00026847,2]
[313210106,1706953832344,-153.0,0.00026849,2]
[313210108,1706953832353,-399.4848484,0.00026849,2]
[313210110,1706953832362,-153.0,0.00026849,2]
[313210113,1706953832371,-153.0,0.00026849,2]
[313210114,1706953832381,-306.542544,0.00026849,2]
[313210117,1706953832391,-306.8078246,0.00026849,2]
[313210119,1706953832400,-153.873444,0.00026849,2]
[313210120,1706953832410,-154.000139,0.00026849,2]
[313210122,1706953832421,-153.0,0.00026849,2]
[313210124,1706953832431,-212.433075,0.00026849,2]
[313210126,1706953832440,-1395.9,0.00027,2]
[313210128,1706953832449,-600.0,0.00027,2]
[313210130,1706953832458,-7005.94,0.00027088,3]
[313210132,1706953832468,-637.36337543,0.00027098,2]
[313210134,1706953832477,-155.50054411,0.00027098,2]
[313210136,1706953832486,-331.8109321,0.00027098,2]
[313210138,1706953832495,-155.79983419,0.00027098,2]
[313210140,1706953832504,-175.056674,0.00027098,2]
[313210142,1706953832514,-156.25070942,0.00027098,2]
[313210143,1706953832523,-299.32687714,0.00027098,2]
[313210144,1706953832532,-157.33040655,0.00027098,2]
[313210145,1706953832541,-1249.89896506,0.00027098,2]
[313210146,1706953832550,-427.46004089,0.00027098,2]
[313210147,1706953832558,-6799.23859091,0.00027098,2]
[313210148,1706953832567,-155.69605993,0.00027098,2]
[313210149,1706953832576,-454.59894632,0.00027098,2]
[313210150,1706953832585,-693.32314678,0.00027098,2]
[313210151,1706953832594,-155.72853088,0.00027098,2]
[313210152,1706953832603,-591.99312524,0.00027098,2]
[313210153,1706953832613,-156.8872007,0.00027098,2]
[313210154,1706953832622,-12492.68892997,0.00027098,2]
[313210365,1706953838115,-155.02170304,0.00023062,2]
[313210366,1706953838127,-52678.40496023,0.00024898,2]
[313210367,1706953838139,-790.3643722,0.00027098,2]
[313210368,1706953838150,-534.69538579,0.00027098,2]
[313210370,1706953838162,-1935.01724955,0.00027098,2]
[313210372,1706953838171,-180.7763201,0.00027098,2]
[313210374,1706953838182,-338.61078298,0.00027098,2]
[313210376,1706953838193,-156.9901161,0.00027099,2]
[313210378,1706953838203,-4318.96555713,0.00027099,2]
[313210381,1706953838215,-848.00898149,0.00027099,2]
[313210383,1706953838226,-2293.59373872,0.00027099,2]
[313210385,1706953838238,-230.88142086,0.00027099,2]
[313210387,1706953838249,-500.0,0.00027099,2]
[313210390,1706953838260,-500.0,0.00027099,2]
[313210392,1706953838271,-500.0,0.00027099,2]
[313210394,1706953838283,-311.37143275,0.00027099,2]
[313210396,1706953838294,-374.32229926,0.00027099,2]
[313210399,1706953838305,-500.0,0.00027099,2]
[313210401,1706953838316,-500.0,0.00027099,2]
[313210403,1706953838326,-500.0,0.00027099,2]
[313210405,1706953838338,-500.0,0.00027099,2]
[313210407,1706953838348,-500.0,0.00027099,2]
[313210409,1706953838357,-500.0,0.00027099,2]
[313210411,1706953838367,-500.0,0.00027099,2]
[313210413,1706953838378,-500.0,0.00027099,2]
[313210415,1706953838389,-218.34543127,0.00027099,2]
[313210418,1706953838400,-500.0,0.00027099,2]
[313210420,1706953838412,-500.0,0.00027099,2]
[313210422,1706953838422,-500.0,0.00027099,2]
[313210424,1706953838433,-500.0,0.00027099,2]
[313210426,1706953838443,-500.0,0.00027099,2]
[313210429,1706953838454,-500.0,0.00027099,2]
[313210431,1706953838464,-500.0,0.00027099,2]
[313210433,1706953838474,-550.0,0.00027099,2]
[313210435,1706953838484,-500.0,0.00027099,2]
[313210437,1706953838493,-500.0,0.00027099,2]
[313210439,1706953838503,-500.0,0.00027099,2]
[313210441,1706953838513,-500.0,0.00027099,2]
[313210443,1706953838523,-500.0,0.00027099,2]
[313210445,1706953838534,-500.0,0.00027099,2]
[313210447,1706953838544,-165.39070937,0.00027099,2]
[313210450,1706953838554,-500.0,0.00027099,2]
[313210452,1706953838564,-500.0,0.00027099,2]
[313210454,1706953838574,-500.0,0.00027099,2]
[313210456,1706953838585,-500.0,0.00027099,2]
[313210458,1706953838595,-500.0,0.00027099,2]
[313210460,1706953838604,-500.0,0.00027099,2]
[313210462,1706953838615,-500.0,0.00027099,2]
[313210464,1706953838625,-500.0,0.00027099,2]
[313210465,1706953838635,-500.0,0.00027099,2]
[313210466,1706953838645,-500.0,0.00027099,2]
[313210467,1706953838655,-500.0,0.00027099,2]
[313210468,1706953838665,-500.0,0.00027099,2]
[313210469,1706953838675,-500.0,0.00027099,2]
[313210470,1706953838685,-500.0,0.00027099,2]
[313210471,1706953838695,-500.0,0.00027099,2]
[313210472,1706953838705,-500.0,0.00027099,2]
[313210473,1706953838715,-500.0,0.00027099,2]
[313210474,1706953838726,-500.0,0.00027099,2]
[313210475,1706953838736,-500.0,0.00027099,2]
[313210478,1706953838745,-500.0,0.00027099,2]
[313210480,1706953838756,-500.0,0.00027099,2]
[313210482,1706953838766,-500.0,0.00027099,2]
[313210484,1706953838777,-500.0,0.00027099,2]
[313210486,1706953838787,-500.0,0.00027099,2]
[313210488,1706953838797,-500.0,0.00027099,2]
[313210490,1706953838808,-500.0,0.00027099,2]
[313210492,1706953838818,-500.0,0.00027099,2]
[313210495,1706953838830,-477.7726667,0.00027099,2]
[313210497,1706953838839,-500.0,0.00027099,2]
[313210499,1706953838849,-500.0,0.00027099,2]
[313210514,1706953838980,-500.0,0.00027099,2]
[313210516,1706953838990,-500.0,0.00027099,2]
[313210518,1706953838999,-500.0,0.00027099,2]
[313210520,1706953839008,-500.0,0.00027099,2]
[313210522,1706953839017,-500.0,0.00027099,2]
[313210524,1706953839027,-500.0,0.00027099,2]
[313210526,1706953839036,-500.0,0.00027099,2]
[313210528,1706953839046,-500.0,0.00027099,2]
[313210530,1706953839055,-500.0,0.00027099,2]
[313210532,1706953839065,-500.0,0.00027099,2]
[313210534,1706953839074,-500.0,0.00027099,2]
[313210537,1706953839083,-500.0,0.00027099,2]
[313210539,1706953839093,-600.0,0.00027099,2]
[313210541,1706953839102,-500.0,0.00027099,2]
[313210543,1706953839111,-48933.02600869,0.000271,2]
[313210545,1706953839121,-5000.0,0.00027158,2]
[313210547,1706953839129,-5000.0,0.00027167,2]
[313210548,1706953839138,-155.35403325,0.00027395,2]
[313210551,1706953839149,-243.48263359,0.00027395,2]
[313210553,1706953839158,-200.0,0.00027395,2]
[313210554,1706953839167,-276.99964978,0.00027397,2]
[313210556,1706953839177,-500.0,0.00027397,2]
[313210558,1706953839186,-500.0,0.00027397,2]
[313210560,1706953839195,-504.73072043,0.00027397,2]
[313210562,1706953839204,-500.0,0.00027397,2]
[313210564,1706953839214,-500.0,0.00027397,2]
[313210566,1706953839223,-500.0,0.00027397,2]
[313210568,1706953839232,-501.37259724,0.00027397,2]
[313210570,1706953839241,-500.0,0.00027397,2]
[313210573,1706953839250,-502.36653154,0.00027397,2]
[313210575,1706953839260,-500.0,0.00027397,2]
[313210577,1706953839269,-506.75800662,0.00027397,2]
[313210579,1706953839278,-503.49271453,0.00027397,2]
[313210580,1706953839288,-500.0,0.00027397,2]
[313210583,1706953839297,-566.20643308,0.00027397,2]
[313210585,1706953839306,-500.0,0.00027397,2]
[313210587,1706953839316,-500.0,0.00027397,2]
[313210589,1706953839325,-500.0,0.00027397,2]
[313210591,1706953839335,-155.0,0.00027397,2]
[313210593,1706953839346,-500.0,0.00027397,2]
[313210595,1706953839355,-500.0,0.00027397,2]
[313210598,1706953839375,-500.0,0.00027397,2]
[313210600,1706953839385,-500.0,0.00027397,2]
[313210602,1706953839396,-500.0,0.00027397,2]
[313210604,1706953839407,-500.0,0.00027397,2]
[313210606,1706953839418,-505.61402559,0.00027397,7]
[313210608,1706953839429,-505.61619828,0.00027397,2]
[313210610,1706953839438,-176.33972775,0.00027397,2]
[313210612,1706953839449,-308.37268485,0.00027397,2]
[313210614,1706953839460,-500.0,0.00027397,2]
[313210616,1706953839470,-500.0,0.00027397,2]
[313210618,1706953839480,-240.43038265,0.00027397,2]
[313210620,1706953839490,-500.0,0.00027397,2]
[313210622,1706953839500,-505.95287227,0.00027397,2]
[313210625,1706953839510,-500.0,0.00027397,2]
[313210627,1706953839519,-501.95979755,0.00027397,2]
[313210629,1706953839529,-500.0,0.00027397,2]
[313210631,1706953839539,-501.56367019,0.00027397,2]
[313210633,1706953839549,-509.16728415,0.00027397,2]
[313210635,1706953839558,-500.0,0.00027397,2]
[313210637,1706953839568,-500.0,0.00027397,2]
[313210639,1706953839578,-500.0,0.00027397,2]
[313210641,1706953839587,-194.57581154,0.00027397,2]
[313210643,1706953839597,-500.0,0.00027397,2]
[313210645,1706953839606,-500.0,0.00027397,2]
[313210647,1706953839615,-500.0,0.00027397,2]
[313210649,1706953839625,-500.0,0.00027397,2]
[313210651,1706953839635,-503.93231267,0.00027397,2]
[313210653,1706953839644,-163.16785423,0.00027397,2]
[313210655,1706953839654,-500.0,0.00027397,2]
[313210657,1706953839663,-3367.21,0.00027397,2]
[313210659,1706953839673,-500.0,0.00027397,2]
[313210661,1706953839682,-500.0,0.00027397,2]
[313210663,1706953839692,-731.54,0.00027397,2]
[313210665,1706953839701,-500.0,0.00027397,2]
[313210667,1706953839711,-500.0,0.00027397,2]
[313210669,1706953839720,-500.0,0.00027397,2]
[313210670,1706953839730,-509.96,0.00027397,2]
[313210671,1706953839739,-750.21,0.00027397,2]
[313210672,1706953839749,-508.84074128,0.00027397,2]
[313210673,1706953839758,-500.0,0.00027397,2]
[313210674,1706953839768,-500.0,0.00027397,2]
[313210675,1706953839777,-504.62288054,0.00027397,2]
[313210676,1706953839786,-500.0,0.00027397,2]
[313210677,1706953839796,-474.96707827,0.00027397,2]
[313210678,1706953839805,-500.0,0.00027397,2]
[313210679,1706953839814,-500.0,0.00027397,2]
[313210680,1706953839826,-500.0,0.00027397,2]
[313210681,1706953839836,-500.0,0.00027397,2]
[313210682,1706953839845,-500.0,0.00027397,2]
[313210683,1706953839854,-505.88117629,0.00027397,2]
[313210684,1706953839865,-513.93419891,0.00027397,2]
[313210685,1706953839875,-660.67,0.00027397,2]
[313210686,1706953839884,-500.0,0.00027397,2]
[313210687,1706953839894,-500.0,0.00027397,2]
[313210688,1706953839903,-500.0,0.00027397,2]
[313210689,1706953839913,-1243.64,0.00027397,2]
[313210690,1706953839922,-500.0,0.00027397,2]
[313210691,1706953839932,-624.15640998,0.00027397,2]
[313210692,1706953839941,-500.0,0.00027397,2]
[313210693,1706953839950,-500.0,0.00027397,2]
[313210694,1706953839960,-500.0,0.00027397,2]
[313210695,1706953839969,-500.0,0.00027397,2]
[313210696,1706953839978,-500.0,0.00027397,2]
[313210697,1706953839987,-503.81745858,0.00027397,2]
[313210698,1706953839997,-525.34101276,0.00027397,2]
[313210699,1706953840006,-500.0,0.00027397,2]
[313210700,1706953840016,-1334.23,0.00027397,2]
[313210701,1706953840026,-500.49854135,0.00027397,2]
[313210702,1706953840035,-500.0,0.00027397,2]
[313210703,1706953840045,-500.0,0.00027397,2]
[313210704,1706953840054,-500.0,0.00027397,2]
[313210705,1706953840063,-1748.92,0.00027397,2]
[313210706,1706953840072,-500.0,0.00027397,2]
[313210707,1706953840081,-500.0,0.00027397,2]
[313210708,1706953840091,-500.0,0.00027397,2]